fUST/lending_fUST_20251024
["ID","MTS","AMOUNT","RATE_DAILY","PERIOD"]
[392281300,1761305125029,3728.07911997,0.000181,2]
[392281301,1761305125052,1271.92088003,0.000181,2]
[392281303,1761305147448,5000.0,0.000181,2]
[392281306,1761305170108,2766.41480101,0.000181,2]
[392281314,1761305183785,-954.3318175,0.00018132,2]
[392281315,1761305183815,-530.43273453,0.00018373,2]
[392281316,1761305183845,-1626.0323178,0.00018683,2]
[392281317,1761305183878,-1472.28423139,0.000189,2]
[392281318,1761305183907,-329.8506625,0.000189,2]
[392281319,1761305189688,-415.13565222,0.000182,2]
[392281320,1761305189715,-174.14647256,0.000189,2]
[392281321,1761305189745,-1200.0,0.00018972,2]
[392281322,1761305189775,-300.0,0.00018972,2]
[392281323,1761305189803,-463.36823279,0.00018973,2]
[392281324,1761305189831,-500.0,0.00018973,2]
[392281325,1761305189862,-500.0,0.00018973,2]
[392281326,1761305189892,-245.54,0.00018986,3]
[392281327,1761305189922,-736.62,0.00018986,3]
[392281328,1761305189958,-390.56928486,0.00018986,3]
[392281329,1761305196840,-149.25071514,0.00018986,3]
[392281330,1761305196873,-300.0,0.00018994,2]
[392281331,1761305197972,395.2902614,0.00018273,2]
[392281332,1761305214566,10000.0,0.000181,2]
[392281334,1761305222078,-167.42762929,0.00018995,2]
[392281335,1761305222108,-500.0,0.00018995,2]
[392281336,1761305222138,-165.63802026,0.00018995,2]
[392281337,1761305222185,-500.0,0.00018995,2]
[392281338,1761305222219,-651.33030865,0.00018995,2]
[392281339,1761305222250,-500.0,0.00018995,2]
[392281340,1761305222280,-409.05972197,0.00018995,2]
[392281341,1761305222310,-500.0,0.00018995,2]
[392281342,1761305222341,-500.0,0.00018995,2]
[392281343,1761305222373,-500.0,0.00018995,2]
[392281344,1761305222403,-500.0,0.00018995,2]
[392281345,1761305230139,-300.0,0.00018994,2]
[392281346,1761305230169,-500.0,0.00018995,2]
[392281347,1761305230199,-183.05748995,0.00018995,2]
[392281348,1761305230230,-500.0,0.00018995,2]
[392281349,1761305230262,-500.0,0.00018995,2]
[392281350,1761305230292,-500.0,0.00018995,2]
[392281351,1761305230322,-500.0,0.00018995,2]
[392281352,1761305230353,-500.0,0.00018995,2]
[392281353,1761305230382,-500.0,0.00018995,2]
[392281354,1761305230413,-500.0,0.00018995,2]
[392281355,1761305230444,-500.0,0.00018995,2]
[392281356,1761305232781,10000.0,0.00014,2]
[392281362,1761305264927,-163.21674625,0.00018895,2]
[392281363,1761305266070,9673.5765075,0.00018,2]
[392281364,1761305281490,-1721.84343596,0.00018,2]
[392281365,1761305281511,-10000.01,0.00018,2]
[392281366,1761305283876,-686.89658415,0.00018,2]
[392281367,1761305283912,-4109.66846113,0.00018,2]
[392281368,1761305283948,-406.87990944,0.00018,2]
[392281369,1761305284408,300.0,0.00017999,2]
[392281371,1761305311675,9700.01,0.00015,2]
[392281372,1761305311696,10000.01,0.00015,2]
[392281373,1761305311718,2180.45944898,0.00015,2]
[392281374,1761305315070,25179.35484283,0.000288,120]
[392281375,1761305321591,261.29334924,0.00015,2]
[392281395,1761305353354,3160.09,0.00030136,120]
[392281430,1761305433737,-973.58936074,0.000189,2]
[392281431,1761305433760,-204.23802434,0.000189,2]
[392281432,1761305433769,-221.88543242,0.00018984,2]
[392281433,1761305433779,-151.0,0.00018984,2]
[392281434,1761305433788,-177.83011124,0.00018994,2]
[392281638,1761305458877,-7558.25720178,0.0001899,2]
[392281639,1761305458911,-10000.01,0.0001899,2]
[392281640,1761305458992,-10000.01,0.0001899,2]
[392281641,1761305463621,-300.0,0.00018989,2]
[392281642,1761305463666,-9400.01,0.0001899,2]
[392281643,1761305463736,-10000.01,0.0001899,2]
[392281644,1761305463865,-10000.01,0.0001899,2]
[392281645,1761305468032,-2788.21288296,0.0001899,2]
[392281646,1761305468069,-1022.16988876,0.00018994,2]
[392281647,1761305468101,-519.82407984,0.00018994,2]
[392281648,1761305468132,-200.5914091,0.00018995,2]
[392281649,1761305468163,-438.41347868,0.00018995,2]
[392281650,1761305468274,-61.58652132,0.00018995,2]
[392281651,1761305471941,-500.0,0.00018995,2]
[392281652,1761305471972,-259.48809924,0.00018995,2]
[392281653,1761305472002,-192.94921806,0.00018995,2]
[392281654,1761305472032,-562.43992744,0.00018995,2]
[392281655,1761305472070,-500.0,0.00018995,2]
[392281656,1761305472104,-172.21568272,0.00018995,2]
[392281657,1761305472136,-500.0,0.00018995,2]
[392281658,1761305472168,-500.0,0.00018995,2]
[392281659,1761305472199,-437.56007256,0.00018995,2]
[392281660,1761305472246,-500.0,0.00018995,2]
[392281661,1761305472295,-500.0,0.00018995,2]
[392281662,1761305472342,-220.17173177,0.00018995,2]
[392281663,1761305472514,-310.36053642,0.00018995,2]
[392281664,1761305472556,-500.0,0.00018995,2]
[392281665,1761305472602,-412.40086939,0.00018995,2]
[392281666,1761305472644,-500.0,0.00018995,2]
[392281667,1761305472689,-500.0,0.00018995,2]
[392281668,1761305472729,-192.94921806,0.00018995,2]
[392281669,1761305472772,-500.0,0.00018995,2]
[392281670,1761305472813,-500.0,0.00018995,2]
[392281671,1761305472856,-500.0,0.00018995,2]
[392281672,1761305472894,-500.0,0.00018995,2]
[392281673,1761305472935,-500.0,0.00018995,2]
[392281674,1761305473056,-500.0,0.00018995,2]
[392281675,1761305473097,-447.12835697,0.00018995,2]
[392281676,1761305473140,-500.0,0.00018995,2]
[392281677,1761305473181,-500.0,0.00018995,2]
[392281678,1761305473222,-500.0,0.00018995,2]
[392281679,1761305473264,-500.0,0.00018995,2]
[392281680,1761305473304,-500.0,0.00018995,2]
[392281681,1761305473342,-500.0,0.00018995,2]
[392281682,1761305473381,-500.0,0.00018995,2]
[392281683,1761305473420,-187.61839356,0.00018995,2]
[392281684,1761305473461,-230.51649894,0.00018995,2]
[392281685,1761305473637,-269.48350106,0.00018995,2]
[392281686,1761305473676,-500.0,0.00018995,2]
[392281687,1761305473714,-245.58202162,0.00018995,2]
[392281688,1761305473744,-523.28137915,0.00018995,2]
[392281690,1761305525149,300.0,0.00018995,2]
[392281691,1761305529050,500.0,0.00018995,2]
[392281692,1761305529083,181.78468129,0.00018995,2]
[392281693,1761305529435,500.0,0.00018995,2]
[392281694,1761305529478,500.0,0.00018995,2]
[392281695,1761305529517,500.0,0.00018995,2]
[392281696,1761305529551,500.0,0.00018995,2]
[392281697,1761305529583,500.0,0.00018995,2]
[392281698,1761305529617,500.0,0.00018995,2]
[392281699,1761305529654,335.00000004,0.00018995,2]
[392281700,1761305529721,500.0,0.00018995,2]
[392281701,1761305529760,187.0208759,0.00018995,2]
[392281702,1761305538353,468.51578546,0.00018995,2]
[392281703,1761305538439,248.3804108,0.00018995,2]
[392281704,1761305547472,162.0,0.00018995,2]
[392281705,1761305547500,330.6878991,0.00018995,2]
[392281706,1761305558562,1200.0,0.00018995,2]
[392281708,1761305567243,500.0,0.00018995,2]
[392281709,1761305567488,363.65156736,0.00018995,2]
[392281711,1761305583174,300.0,0.00018995,2]
[392281712,1761305588027,1378.290584,0.00013699,2]
[392281714,1761305594791,3028.42,0.00030136,120]
[392281717,1761305599703,44.67819605,0.00018995,2]
[392281718,1761305599731,455.32180395,0.00018995,2]
[392281719,1761305600320,500.0,0.00018995,2]
[392281720,1761305600372,250.07896076,0.00018995,2]
[392281721,1761305607367,8794.60923529,0.00018317,2]
[392281722,1761305607391,1640.74422011,0.00018317,2]
[392281723,1761305631167,1028.5049064,0.00018996,2]
[392281724,1761305643592,300.0,0.00018995,2]
[392281725,1761305703211,300.0,0.00018995,2]
[392281726,1761305703238,300.0,0.00018995,2]
[392281727,1761305703267,300.0,0.00018995,2]
[392281728,1761305703711,300.0,0.00018995,2]
[392281729,1761305706655,300.0,0.00018995,2]
[392281730,1761305707245,1200.0,0.00018995,2]
[392281731,1761305714443,221.88543242,0.00018996,2]
[392281732,1761305715079,205.29110602,0.00018995,2]
[392281733,1761305715131,500.0,0.00018995,2]
[392281734,1761305723103,193.72710177,0.00018995,2]
[392281735,1761305723789,500.0,0.00018995,2]
[392281736,1761305732715,305.47051893,0.00018995,2]
[392281737,1761305735236,491.08,0.00018986,3]
[392281738,1761305744508,500.0,0.00018995,2]
[392281739,1761305757429,1413.30671435,0.00018739,2]
[392281740,1761305757452,621.13454745,0.00018739,2]
[392281741,1761305760528,942.26190808,0.00018898,2]
[392281742,1761305763189,300.0,0.00018995,2]
[392281743,1761305768809,500.0,0.00018995,2]
[392281744,1761305768873,500.0,0.00018995,2]
[392281745,1761305768917,393.00515519,0.00018995,2]
[392281748,1761305824391,300.0,0.00018995,2]
[392281749,1761305832456,2902.23,0.00030136,120]
[392281751,1761305847046,1000.0,0.00018995,2]
[392281752,1761305847166,1000.0,0.00018995,2]
[392281753,1761305847220,1000.0,0.00018995,2]
[392281754,1761305847417,1000.0,0.00018995,2]
[392281755,1761305847643,1000.0,0.00018995,2]
[392281756,1761305847883,1000.0,0.00018995,2]
[392281757,1761305848120,443.60838928,0.00018995,2]
[392281758,1761305848143,556.39161072,0.00018995,2]
[392281759,1761305848362,1000.0,0.00018995,2]
[392281760,1761305848946,1000.0,0.00018995,2]
[392281761,1761305849179,1000.0,0.00018995,2]
[392281762,1761305849408,699.33056489,0.00018995,2]
[392281763,1761305865853,630.9693839,0.00018872,2]
[392281764,1761305877432,5113.31844049,0.00018896,2]
[392281765,1761305877454,10000.01,0.00018896,2]
[392281766,1761305877479,10000.01,0.00018896,2]
[392281767,1761305877500,10000.01,0.00018896,2]
[392281768,1761305877522,10000.01,0.00018896,2]
[392281769,1761305877542,10000.01,0.00018896,2]
[392281770,1761305877563,10000.01,0.00018896,2]
[392281771,1761305877587,10000.01,0.00018896,2]
[392281772,1761305877610,10000.01,0.00018896,2]
[392281773,1761305877632,10000.01,0.00018896,2]
[392281774,1761305884228,-214.36076563,0.0001867,2]
[392281775,1761305884486,-300.0,0.00018895,2]
[392281776,1761305888948,-8971.28846874,0.00018896,2]
[392281777,1761305888963,-10000.01,0.00018896,2]
[392281778,1761305889035,-359.88,0.00018886,3]
[392281779,1761305889071,-9280.25,0.00018896,2]
[392281780,1761305889181,-10000.01,0.00018896,2]
[392281781,1761305889329,-10000.01,0.00018896,2]
[392281782,1761305889479,-10000.01,0.00018896,2]
[392281783,1761305889636,-10000.01,0.00018896,2]
[392281784,1761305892536,-10000.01,0.00018896,2]
[392281785,1761305892694,-10000.01,0.00018896,2]
[392281786,1761305892753,-10000.01,0.00018896,2]
[392281787,1761305895436,-10000.01,0.00018896,2]
[392281788,1761305895556,-10000.01,0.00018896,2]
[392281789,1761305895695,-10000.01,0.00018896,2]
[392281790,1761305895806,-10000.01,0.00018896,2]
[392281791,1761305895934,-10000.01,0.00018896,2]
[392281792,1761305896046,-10000.01,0.00018896,2]
[392281793,1761305896164,-10000.01,0.00018896,2]
[392281794,1761305898676,-10000.01,0.00018896,2]
[392281795,1761305898955,-10000.01,0.00018896,2]
[392281796,1761305899068,-10000.01,0.00018896,2]
[392281797,1761305901493,-10000.01,0.00018896,2]
[392281798,1761305901830,-10000.01,0.00018896,2]
[392281799,1761305902231,-10000.01,0.00018896,2]
[392281800,1761305902249,-10000.01,0.00018896,2]
[392281801,1761305902265,-10000.01,0.00018896,2]
[392281802,1761305902317,-10000.01,0.00018896,2]
[392281803,1761305902515,-10000.01,0.00018896,2]
[392281804,1761305913737,-3365.20690923,0.00018896,2]
[392281805,1761305913759,-3269.59618154,0.00018896,2]
[392281807,1761305913873,-151.0,0.00018996,2]
[392281810,1761305927178,5000.0,0.00018838,2]
[392281814,1761305983167,-509.42759824,0.00018808,2]
[392281815,1761305983198,-295.31850487,0.00018898,2]
[392281816,1761305987863,5000.0,0.00018996,2]
[392281817,1761305996240,3390.51779378,0.00018996,2]
[392281818,1761305998280,-1609.48220622,0.00018996,2]
[392281820,1761306014461,205.64574969,0.00018896,2]
[392281822,1761306019513,2012.56835509,0.00018996,2]
[392281824,1761306029896,418.09134705,0.0001899,2]
[392281825,1761306031870,-509.42759824,0.00018998,2]
[392281826,1761306031898,-300.0,0.00018999,2]
[392281827,1761306031927,-1200.0,0.00018999,2]
[392281828,1761306031955,-500.0,0.00019,2]
[392281829,1761306031986,-1085.04231428,0.00019,2]
[392281830,1761306032139,-2811.07017496,0.00019,2]
[392281831,1761306032167,-500.0,0.00019,2]
[392281832,1761306032195,-1135.74489102,0.00019154,2]
[392281833,1761306032224,-221.88543242,0.00019166,2]
[392281834,1761306032252,-79.60384984,0.00019177,2]
[392281835,1761306032294,-503.40130352,0.00019177,2]
[392281836,1761306032322,-306.17476728,0.00019177,2]
[392281837,1761306032354,-500.0,0.00019177,2]
[392281838,1761306032385,-187.44676399,0.00019177,2]
[392281839,1761306032421,-212.11774689,0.00019177,2]
[392281840,1761306032450,-549.96923812,0.00019177,2]
[392281841,1761306032481,-500.0,0.00019177,2]
[392281842,1761306032510,-516.97824895,0.00019177,2]
[392281843,1761306032538,-1600.70095542,0.00019178,2]
[392281844,1761306032698,-1600.70095542,0.00019178,2]
[392281845,1761306032728,-1600.70095542,0.00019178,2]
[392281846,1761306032759,-1600.70095542,0.00019178,2]
[392281847,1761306032875,-1600.70095542,0.00019178,2]
[392281848,1761306032903,-1600.70095542,0.00019178,2]
[392281849,1761306032932,-1600.70095542,0.00019178,2]
[392281850,1761306033125,-1600.70095542,0.00019178,2]
[392281851,1761306033156,-1600.70095542,0.00019178,2]
[392281852,1761306033185,-1600.70095542,0.00019178,2]
[392281853,1761306033285,-1600.70095542,0.00019178,2]
[392281854,1761306033314,-1600.70095542,0.00019178,2]
[392281855,1761306033342,-1600.70095542,0.00019178,2]
[392281856,1761306033664,-1600.70095542,0.00019178,2]
[392281857,1761306033693,-1600.70095542,0.00019178,2]
[392281858,1761306033721,-1600.70095542,0.00019178,2]
[392281859,1761306037925,-1600.70095542,0.00019178,2]
[392281860,1761306037953,-1600.70095542,0.00019178,2]
[392281861,1761306037982,-1600.70095542,0.00019178,2]
[392281862,1761306038086,-1600.70095542,0.00019178,2]
[392281863,1761306038117,-1600.70095542,0.00019178,2]
[392281864,1761306038148,-1600.70095542,0.00019178,2]
[392281865,1761306038263,-1600.70095542,0.00019178,2]
[392281866,1761306038292,-1600.70095542,0.00019178,2]
[392281867,1761306038320,-1600.70095542,0.00019178,2]
[392281868,1761306038435,-1600.70095542,0.00019178,2]
[392281869,1761306038463,-1600.70095542,0.00019178,2]
[392281870,1761306038492,-1600.70095542,0.00019178,2]
[392281871,1761306042037,-1600.70095542,0.00019178,2]
[392281872,1761306042064,-1600.70095542,0.00019178,2]
[392281873,1761306042093,-1600.70095542,0.00019178,2]
[392281874,1761306042212,-1600.70095542,0.00019178,2]
[392281875,1761306042241,-1600.70095542,0.00019178,2]
[392281876,1761306042268,-1600.70095542,0.00019178,2]
[392281877,1761306042390,-1600.70095542,0.00019178,2]
[392281878,1761306042418,-1600.70095542,0.00019178,2]
[392281879,1761306042448,-1600.70095542,0.00019178,2]
[392281880,1761306042556,-1600.70095542,0.00019178,2]
[392281881,1761306042760,-500.0,0.00019178,2]
[392281882,1761306042789,-500.0,0.00019178,2]
[392281883,1761306042819,-500.0,0.00019178,2]
[392281884,1761306042848,-500.0,0.00019178,2]
[392281886,1761306042876,-500.0,0.00019178,2]
[392281887,1761306042906,-500.0,0.00019178,2]
[392281888,1761306042937,-298.60808916,0.00019178,2]
[392281889,1761306043023,-201.39191084,0.00019178,2]
[392281890,1761306043051,-500.0,0.00019178,2]
[392281891,1761306043078,-500.0,0.00019178,2]
[392281892,1761306043105,-500.0,0.00019178,2]
[392281893,1761306043134,-500.0,0.00019178,2]
[392281894,1761306043162,-500.0,0.00019178,2]
[392281895,1761306043191,-500.0,0.00019178,2]
[392281896,1761306043219,-500.0,0.00019178,2]
[392281897,1761306043248,-500.0,0.00019178,2]
[392281898,1761306043275,-500.0,0.00019178,2]
[392281899,1761306043302,-97.22617832,0.00019178,2]
[392281900,1761306043332,-402.77382168,0.00019178,2]
[392281901,1761306043360,-500.0,0.00019178,2]
[392281902,1761306043388,-500.0,0.00019178,2]
[392281903,1761306043415,-500.0,0.00019178,2]
[392281904,1761306043446,-500.0,0.00019178,2]
[392281905,1761306043474,-500.0,0.00019178,2]
[392281906,1761306043501,-500.0,0.00019178,2]
[392281907,1761306043529,-500.0,0.00019178,2]
[392281908,1761306043555,-500.0,0.00019178,2]
[392281909,1761306043584,-500.0,0.00019178,2]
[392281910,1761306045805,-500.0,0.00019178,2]
[392281911,1761306045832,-500.0,0.00019178,2]
[392281912,1761306045859,-500.0,0.00019178,2]
[392281913,1761306045886,-228.20117853,0.00019178,2]
[392281914,1761306045913,-500.0,0.00019178,2]
[392281915,1761306045941,-500.0,0.00019178,2]
[392281916,1761306045970,-500.0,0.00019178,2]
[392281917,1761306045997,-500.0,0.00019178,2]
[392281918,1761306046023,-399.29904458,0.00019178,2]
[392281919,1761306046794,1745.00955378,0.00018896,2]
[392281920,1761306046817,10000.01,0.00018896,2]
[392281921,1761306046838,10000.01,0.00018896,2]
[392281922,1761306046861,10000.01,0.00018896,2]
[392281923,1761306046883,10000.01,0.00018896,2]
[392281924,1761306065333,-451.58,0.00018886,3]
[392281925,1761306065362,-300.0,0.00018895,2]
[392281926,1761306073390,-9842.96908031,0.00018896,2]
[392281927,1761306076500,-10000.01,0.00018896,2]
[392281928,1761306080483,-2843.9854091,0.00018707,2]
[392281929,1761306080507,-4312.0391818,0.00018707,2]
[392281931,1761306147716,-1678.9699051,0.0001852,2]
[392281932,1761306147744,-1678.9699051,0.00018707,2]
[392281933,1761306147772,-653.86969548,0.00018707,2]
[392281934,1761306147800,-300.0,0.00018895,2]
[392281935,1761306147868,-1376.39098864,0.00018896,2]
[392281936,1761306154728,-1913.79288832,0.00018402,2]
[392281937,1761306154762,-1913.79288832,0.00018659,2]
[392281938,1761306154792,-500.0,0.00018873,2]
[392281939,1761306154823,-471.46284063,0.00018895,2]
[392281940,1761306154857,-187.59042836,0.00018895,2]
[392281941,1761306155012,-26.73190874,0.00018895,2]
[392281942,1761306161881,-1200.0,0.00018894,2]
[392281943,1761306161910,-500.0,0.00018895,2]
[392281944,1761306161937,-500.0,0.00018895,2]
[392281945,1761306161967,-500.0,0.00018895,2]
[392281946,1761306161997,-500.0,0.00018895,2]
[392281947,1761306162029,-500.0,0.00018895,2]
[392281948,1761306162058,-500.0,0.00018895,2]
[392281949,1761306162086,-500.0,0.00018895,2]
[392281950,1761306162113,-100.01,0.00018895,2]
[392281951,1761306162523,-399.99,0.00018895,2]
[392281952,1761306168977,-10000.01,0.00018706,2]
[392281954,1761306234150,-4183.16506551,0.00018706,2]
[392281955,1761306234180,-205.64574969,0.00018708,2]
[392281956,1761306234208,-300.0,0.00018894,2]
[392281957,1761306234236,-122.3883696,0.00018895,2]
[392281958,1761306234309,-377.6116304,0.00018895,2]
[392281959,1761306241099,-500.0,0.00018895,2]
[392281960,1761306241128,-500.0,0.00018895,2]
[392281961,1761306241160,-500.0,0.00018895,2]
[392281962,1761306241188,-454.66952913,0.00018895,2]
[392281963,1761306241215,-476.0814152,0.00018895,2]
[392281964,1761306241243,-532.12913502,0.00018895,2]
[392281965,1761306241271,-500.0,0.00018895,2]
[392281966,1761306241299,-500.0,0.00018895,2]
[392281967,1761306241328,-500.0,0.00018895,2]
[392281968,1761306241577,-500.0,0.00018895,2]
[392281969,1761306241796,-69.24905567,0.00018895,2]
[392281970,1761306241849,-74.2498413,0.00018895,2]
[392281971,1761306245168,-300.0,0.00018894,2]
[392281972,1761306245201,-356.50110303,0.00018895,2]
[392281973,1761306245232,-500.0,0.00018895,2]
[392281974,1761306245263,-535.31126155,0.00018895,2]
[392281975,1761306245294,-500.0,0.00018895,2]
[392281976,1761306245324,-500.0,0.00018895,2]
[392281977,1761306245355,-500.0,0.00018895,2]
[392281978,1761306245387,-500.0,0.00018895,2]
[392281979,1761306245417,-500.0,0.00018895,2]
[392281980,1761306245447,-500.0,0.00018895,2]
[392281981,1761306245479,-116.38527084,0.00018895,2]
[392281982,1761306246022,-383.61472916,0.00018895,2]
[392281983,1761306253286,-500.0,0.00018895,2]
[392281984,1761306253317,-500.0,0.00018895,2]
[392281985,1761306253347,-500.0,0.00018895,2]
[392281986,1761306253376,-500.0,0.00018895,2]
[392281987,1761306253408,-500.0,0.00018895,2]
[392281988,1761306253439,-184.98372461,0.00018895,2]
[392281989,1761306253466,-500.0,0.00018895,2]
[392281990,1761306253496,-500.0,0.00018895,2]
[392281991,1761306253636,-2630.04255078,0.00018896,2]
[392281992,1761306260457,-10000.01,0.00018707,2]
[392281994,1761306306963,2781.31,0.00030136,120]
[392281995,1761306342960,-300.0,0.00018706,2]
[392281996,1761306342989,-955.0,0.00018706,2]
[392281997,1761306343039,-7490.01,0.00018707,2]
[392281998,1761306343329,-296.61367006,0.00018707,2]
[392281999,1761306343356,-9406.78265988,0.00018707,2]
[392282000,1761306345574,-1913.79288833,0.00018715,2]
[392282001,1761306360859,-500.0,0.00018873,2]
[392282002,1761306360895,-500.0,0.00018873,2]
[392282003,1761306360932,-500.0,0.00018873,2]
[392282004,1761306360964,-500.0,0.00018873,2]
[392282005,1761306360996,-500.0,0.00018873,2]
[392282006,1761306361028,-835.01,0.00018886,3]
[392282007,1761306363423,5000.0,0.000201,9]
[392282008,1761306366363,300.0,0.00018895,2]
[392282009,1761306386473,1921.24050534,0.00018896,2]
[392282010,1761306389527,206.474724,9.103e-05,2]
[392282011,1761306412244,602.04,0.00018886,3]
[392282012,1761306424353,300.0,0.00018895,2]
[392282013,1761306436773,0.23477066,0.00018798,2]
[392282014,1761306436794,174.12267456,0.00018798,2]
[392282015,1761306438448,4826.64656362,0.00018798,2]
[392282016,1761306447522,753.80952648,0.00018798,2]
[392282017,1761306483718,300.0,0.00018895,2]
[392282018,1761306544677,300.0,0.00018895,2]
[392282019,1761306560997,2665.42,0.00030136,120]
[392282020,1761306561999,3217.0,0.00018895,2]
[392282028,1761306605222,300.0,0.00018895,2]
[392282029,1761306605339,128.43123534,0.00018895,2]
[392282030,1761306605363,171.56876466,0.00018895,2]
[392282031,1761306606121,300.0,0.00018895,2]
[392282032,1761306606681,1200.0,0.00018895,2]
[392282033,1761306609805,151.0,0.00018896,2]
[392282034,1761306610438,151.0,0.00018896,2]
[392282035,1761306611053,151.0,0.00018896,2]
[392282036,1761306611695,151.0,0.00018896,2]
[392282037,1761306612406,175.13092885,0.00018896,2]
[392282038,1761306616114,221.88543242,0.00018896,2]
[392282039,1761306624046,151.0,0.00018896,2]
[392282069,1761306631784,-1113.1205004,0.00018896,2]
[392282102,1761306637547,-2273.86215821,0.00018896,2]
[392282104,1761306637558,-3292.10401018,0.00018896,2]
[392282121,1761306639807,-5064.828351,0.00018896,2]
[392282123,1761306639818,-470.25647184,0.00018896,2]
[392282593,1761306663110,300.0,0.00018895,2]
[392282594,1761306686984,569.24905567,0.00018895,2]
[392282595,1761306687028,500.0,0.00018895,2]
[392282596,1761306687067,187.63,0.00018895,2]
[392282597,1761306690611,500.0,0.00018895,2]
[392282598,1761306698249,170.54,0.00018886,3]
[392282599,1761306706303,161.75915953,0.00018797,2]
[392282600,1761306709127,511.66,0.00018886,3]
[392282601,1761306724260,300.0,0.00018895,2]
[392282602,1761306758296,1200.0,0.00018895,2]
[392282603,1761306784401,300.0,0.00018895,2]
[392282604,1761306790702,603.04762116,0.00018797,2]
[392282605,1761306790731,2554.36,0.00030136,120]
[392282606,1761306845038,300.0,0.00018895,2]
[392282607,1761306871735,227.14379423,0.00018895,2]
[392282608,1761306871814,474.47498796,0.00018895,2]
[392282609,1761306872907,500.0,0.00018895,2]
[392282610,1761306872949,164.00904613,0.00018895,2]
[392282611,1761306872987,206.91120939,0.00018895,2]
[392282612,1761306873010,293.08879061,0.00018895,2]
[392282613,1761306873042,281.70125128,0.00018895,2]
[392282614,1761306873077,170.23657056,0.00018895,2]
[392282615,1761306873114,242.7759694,0.00018895,2]
[392282616,1761306902079,300.0,0.00018895,2]
[392282617,1761306902774,300.0,0.00018895,2]
[392282618,1761306903668,300.0,0.00018895,2]
[392282619,1761306905251,1200.0,0.00018895,2]
[392282624,1761306908729,1913.792888,0.00018403,2]
[392282625,1761306909058,1913.792888,0.00018753,2]
[392282626,1761306912489,221.88543242,0.00018896,2]
[392282627,1761306934041,341.08,0.00018886,3]
[392282628,1761306963815,300.0,0.00018895,2]
[392282629,1761306975445,163.81782224,0.00018895,2]
[392282630,1761306987370,255.73773143,0.00018895,2]
[392282631,1761307023157,300.0,0.00018895,2]
[392282632,1761307045331,154.48,0.00014868,30]
[392282633,1761307060127,2447.93,0.00030136,120]
[392282634,1761307067000,1502.10065606,0.00017925,2]
[392282635,1761307067023,671.11484294,0.00017925,2]
[392282636,1761307077228,189.52,0.00018886,3]
[392282637,1761307084434,300.0,0.00018895,2]
[392282638,1761307087910,568.61,0.00018886,3]
[392282639,1761307096185,666.0,0.0001801,2]
[392282640,1761307096273,485.85668638,0.00018895,2]
[392282641,1761307099250,500.0,0.00018895,2]
[392282642,1761307121173,500.0,0.00018895,2]
[392282643,1761307130003,159.00065596,0.00018895,2]
[392282644,1761307130512,332.13249157,0.00018895,2]
[392282645,1761307131100,521.59243715,0.00018796,2]
[392282646,1761307132104,475.46486471,0.00018895,2]
[392282648,1761307138711,161.92942056,0.00018895,2]
[392282649,1761307142416,500.0,0.00018895,2]
[392282650,1761307142466,500.0,0.00018895,2]
[392282651,1761307142523,500.0,0.00018895,2]
[392282652,1761307143717,300.0,0.00018895,2]
[392282656,1761307156504,500.0,0.00018895,2]
[392282657,1761307156556,500.0,0.00018895,2]